Cogmind - Beta 13 @@@ ROGUE MODE // 2024.06.12 @ 16:25:29 Player: Minty Result: Destroyed by Y-45 Defender with Beam Rifle Performance ------------- Evolutions (1) 500 Regions Visited (4) 800 Robots Destroyed (39) 195 Value Destroyed (1089) 1089 Prototype IDs (7) 140 Alien Tech Used (0) 0 Bonus (-984) -984 TOTAL SCORE: 1740 Bonus ------- High Alert Combat Kills 17 Friendly Fire -1001 Cogmind --------- Core Integrity 0/400 Matter 242/300 Energy 265/265 System Corruption 17% Temperature Cool (9) Movement Treading (160) Location -9/Storage Parts ------- > --- POWER (1) -------- Improved Ion Engine > --- PROPULSION (3) --- Light Treads Light Treads Light Treads > --- UTILITY (3) ------ Hardened Medium Armor Plating > --- WEAPON (2) ------- Heavy Assault Rifle Rocket Launcher > --- INVENTORY (5) ---- Improved Ion Engine Improved Heat Sink Small Storage Unit YI-UF0's Bottomless Matter Pit (803) Particle Charger Peak State ------------ > --- POWER ------------ Improved Ion Engine > --- PROPULSION ------- Light Treads Advanced Treads Compact Wheel > --- UTILITY ---------- Small Storage Unit Hardened Medium Armor Plating Reflective Plating > --- WEAPON ----------- Ion Cannon YI-UF0's Doublenader > --- INVENTORY -------- Improved Ion Engine YI-UF0's Bottomless Matter Pit Advanced Targeting Computer Advanced Targeting Computer Particle Charger Ion Cannon EMP Trap EMP Trap [Rating: 23] Favorites ----------- Power Improved Ion Engine Engine Improved Ion Engine Propulsion Light Treads Treads Light Treads Leg Aluminum Leg Wheel Compact Wheel Utility Small Storage Unit Device Disposable Heat Sink Storage Small Storage Unit Processor Advanced Targeting Computer Protection Hardened Medium Armor Plating Weapon Ion Cannon Energy Gun EM Pulse Gun Energy Cannon Ion Cannon Ballistic Gun Light Assault Rifle Ballistic Cannon Light Cannon Launcher Rocket Launcher Impact Weapon Heavy Hammer Build | -11 -10 -10 -9 -9 ------- Run | Yrd Mat Min Mat Sto Slots Evolved 2 | . . . 2 . Power . | . . . . . Propulsion 1 | . . . 1 . Utility 1 | . . . 1 . Weapon . | . . . . . Parts Attached 49 | . 2 7 16 24 Power 4 | . . . 1 3 Engine 4 | . . . 1 3 Core . | . . . . . Reactor . | . . . . . Propulsion 13 | . . 2 3 8 Treads 10 | . . 1 2 7 Leg . | . . . . . Wheel 3 | . . 1 1 1 Hover . | . . . . . Flight . | . . . . . Utility 11 | . 1 3 2 5 Device 2 | . 1 . 1 . Storage 1 | . . 1 . . Processor 1 | . . . . 1 Hackware . | . . . . . Protection 7 | . . 2 1 4 Artifact . | . . . . . Weapon 21 | . 1 2 10 8 Energy Gun 4 | . 1 1 1 1 Energy Cannon 8 | . . . 7 1 Ballistic Gun 1 | . . . . 1 Ballistic Cannon 1 | . . . 1 . Launcher 6 | . . 1 1 4 Special Weapon . | . . . . . Impact Weapon 1 | . . . . 1 Slashing Weapon . | . . . . . Piercing Weapon . | . . . . . Special Melee Weapon . | . . . . . Unidentified Prototypes 4 | . . 2 2 . Corrupted Parts 5 | . . 2 . 3 System Corruption 28 | . . 11 . 17 Parts Lost 13 | . . . . 13 Power 2 | . . . . 2 Propulsion 5 | . . . . 5 Utility 2 | . . . . 2 Weapon 4 | . . . . 4 Highest Loss Streak 7 | . . . . 7 To Critical Strikes . | . . . . . Average Slot Usage (%) 91 | . 92 96 99 77 Engine 11 | . 14 14 11 8 Treads 17 | . . 10 22 22 Leg 4 | . 28 5 . . Wheel 7 | . . 10 11 3 Device 5 | . 7 2 7 4 Storage 10 | . 14 14 11 7 Processor 1 | . . . . 4 Protection 9 | . . 11 14 5 Energy Gun 5 | . 14 14 . 3 Energy Cannon 9 | . . . 20 5 Ballistic Gun 3 | . 14 10 . . Launcher 1 | . . 1 . 2 Impact Weapon 2 | . . . . 7 Naked Turns . | . . . . . Heaviest Build 36 | 11 13 24 36 33 Greatest Support 65 | 20 20 22 42 65 Greatest Overweight (x) 4 | . . 1 2 4 Average Overweight (x) . | . . . 1 . Largest Inventory Capacity 8 | . 8 8 8 8 Average Capacity 7 | . 8 8 8 7 Most Carried 8 | . 7 8 8 8 Average Carried 6 | . 6 7 7 5 Final Capacity 8 | 8 8 8 8 5 Final Carried 8 | 6 7 8 8 5 Class Distribution -------------------- 87% | Mutant 12% | Scavenger-Mutant Dominant Class ---------------- Mutant | -10/Materials Mutant | -10/Mines Mutant | -9/Materials Mutant | -9/Storage Resources | -11 -10 -10 -9 -9 ----------- Run | Yrd Mat Min Mat Sto Matter Collected 1535 | 200 42 152 386 755 Remotely . | . . . . . Salvage Created 1479 | . 151 140 397 791 Parts 74 | . 7 9 29 29 Haulers Intercepted 1 | . . . . 1 Recyclers Shooed 1 | . . . . 1 Parts Field Recycled . | . . . . . Retrieved Matter . | . . . . . Parts Self-Destructed . | . . . . . Prevented . | . . . . . Kills | -11 -10 -10 -9 -9 ------- Run | Yrd Mat Min Mat Sto Combat Hostiles Destroyed 29 | . 3 2 8 16 Melee 3 | . . . 1 2 Guns 4 | . 3 . . 1 Cannons 5 | . . . 5 . AOE 10 | . . 2 2 6 Classes Destroyed 10 | . 1 1 2 6 Worker 2 | . . . . 2 Builder 1 | . . . . 1 Hauler 1 | . . . . 1 Recycler 1 | . . . . 1 Mechanic 1 | . . . . 1 Operator 1 | . . . . 1 Watcher 2 | . . . 2 . Swarmer 5 | . . 2 . 3 Grunt 16 | . 3 . 6 7 Sentry 8 | . . . 2 6 Best Kill Streak 8 | . 2 2 3 8 Combat Bots Only 4 | . 2 2 3 4 Max Kills in Single Turn 4 | . 1 2 2 4 Gunslinging . | . . . . . Exploded 4 | . . 2 2 4 Melee 1 | . . . 1 1 Uniques/NPCs Destroyed 1 | . . 1 . . YI-UF0 (-10/Mines) Combat | -11 -10 -10 -9 -9 -------- Run | Yrd Mat Min Mat Sto Hostile Shots Fired 230 | . 15 10 41 164 Missed 63 | . 6 1 12 44 Damage Taken 2332 | . 125 135 343 1729 Core 446 | . 41 . 23 382 Absorbed by Shields . | . . . . . Ignored by Resistances 21 | . . . 11 10 Regen/Repaired (Parts) 214 | . . . . 214 Core Remaining (%) 91 | 100 . 83 . . Volleys Fired 90 | . 26 23 21 20 Largest 2 | . 2 2 2 2 Hottest 130 | . 60 60 130 130 Shots Fired 158 | . 52 37 42 27 Gun 95 | . 52 37 . 6 Cannon 56 | . . . 41 15 Launcher 7 | . . . 1 6 Special . | . . . . . Kinetic 42 | . 26 14 . 2 Thermal 68 | . 7 1 41 19 Explosive 7 | . . . 1 6 Electromagnetic 41 | . 19 22 . . Robot Hit Streak 14 | . 14 14 6 10 Robot Miss Streak 5 | . 4 5 4 3 Penetration Max . | . . . . . Secondary Targets . | . . . . . Shots Hit Robots 116 | . 28 22 21 45 Core Hits 47 | . 9 8 11 19 Critical Kills . | . . . . . Critical Parts Destroyed 7 | . . . . 7 Critical Strikes 7 | . . . . 7 Smash 7 | . . . . 7 Melee Attacks 35 | . . . . 35 Impact 35 | . . . . 35 Slashing . | . . . . . Piercing . | . . . . . Sneak Attacks 4 | . . . . 4 Combat Hostiles . | . . . . . Follow-up Attacks . | . . . . . Damage Inflicted 3061 | . 308 290 623 1840 Guns 610 | . 308 213 . 89 Cannons 700 | . . . 492 208 Explosions 690 | . . 77 99 514 Melee 1029 | . . . . 1029 Ramming 32 | . . . 32 . Kinetic 250 | . 131 88 . 31 Thermal 870 | . 35 77 492 266 Explosive 613 | . . . 99 514 Electromagnetic 267 | . 142 125 . . Impact 1029 | . . . . 1029 Slashing . | . . . . . Piercing . | . . . . . Highest Corruption 17 | . . 11 . 17 Average Corruption 13 | . . 10 . 14 Corruption Purged . | . . . . . Corruption Blocked . | . . . . . Effects 20 | . . 3 . 17 Message Errors 3 | . . . . 3 Matter Fused 2 | . . . . 2 Heat Flow Errors 6 | . . 2 . 4 Energy Discharges 4 | . . 1 . 3 Parts Fused 1 | . . . . 1 Data Loss (minor) 2 | . . . . 2 Data Loss (major) 1 | . . . . 1 Misfires 1 | . . . . 1 Overload Shots . | . . . . . Overflow Damage 503 | . . . 2 501 Projectiles 2 | . . . . 2 Explosions . | . . . . . Melee 501 | . . . 2 499 Knockbacks 5 | . . . . 5 Impact 5 | . . . . 5 Kinetic . | . . . . . Secondary . | . . . . . Self-Inflicted Damage 136 | . . 24 . 112 Shots 6 | . . 1 . 5 Rammed 5 | . . 1 4 . Targets Rammed 6 | . . 1 5 . Kicked . | . . . . . Crushed 1 | . . . 1 . Highest Temperature 386 | . 120 340 386 302 Average Temperature 97 | . 36 89 162 65 Received Heat Transfer 900 | . 72 . 177 651 Siege Activations . | . . . . . Robots Corrupted 1 | . . 1 . . Combat Hostiles . | . . . . . Parts Fried 17 | . . 2 . 15 Impact Corruptions 22 | . . . 1 21 Robots Melted . | . . . . . Combat Hostiles . | . . . . . Parts Melted 1 | . . . 1 . Heat Transferred 1333 | . 75 . 777 481 Parts Sabotaged . | . . . . . Parts Stolen . | . . . . . Parts Stripped . | . . . . . Power Chain Reactions 1 | . . 1 . . Alert | -11 -10 -10 -9 -9 ------- Run | Yrd Mat Min Mat Sto Peak Influence 483 | . 230 137 220 483 Initial 89 | . . 89 53 85 Average 177 | . 82 91 127 324 Maximum Alert Level 2 | . 1 . 1 2 Low Security (%) 58 | . 92 100 65 11 Level 1 34 | . 7 . 34 65 Level 2 7 | . . . . 23 Level 3 . | . . . . . Level 4 . | . . . . . Level 5 . | . . . . . High Security . | . . . . . Max Security . | . . . . . Squads Dispatched 9 | . 1 . 2 6 Investigation 4 | . . . 1 3 Extermination . | . . . . . Reinforcement 3 | . 1 . 1 1 Assault . | . . . . . Garrison 2 | . . . . 2 Intercept . | . . . . . Searches Triggered . | . . . . . Construction Impeded 1 | . . . . 1 Haulers Reinforced . | . . . . . Active Scanning Responses . | . . . . . Cargo Convoy Interrupts . | . . . . . Stealth | -11 -10 -10 -9 -9 --------- Run | Yrd Mat Min Mat Sto Distress Signals 7 | . 1 . 2 4 Communications Jammed . | . . . . . Distress Signals . | . . . . . Times Spotted 54 | . 8 3 17 26 Peak Tracking Total 7 | . 4 3 4 7 Tactical Retreats 4 | . . . 1 3 Traps | -11 -10 -10 -9 -9 ------- Run | Yrd Mat Min Mat Sto Traps Triggered 3 | . . 1 . 2 Indirectly . | . . . . . Trap Hack Attempts . | . . . . . Triggered . | . . . . . Disarmed 6 | . . . 6 . Reprogrammed . | . . . . . Reused 2 | . . . 2 . Traps Extracted . | . . . . . Installed 4 | . . 1 3 . Triggered 2 | . . . 2 . Most Traps Carried 3 | . . 3 3 . Machines | -11 -10 -10 -9 -9 ---------- Run | Yrd Mat Min Mat Sto Machines Disabled 2 | . 2 . . . Max in Single Turn 1 | . 1 . . . Garrison Access 1 | . . . . 1 Machines Repaired . | . . . . . Machines Dismantled . | . . . . . Machines Sabotaged . | . . . . . Overloaded Fab Kills . | . . . . . Hacking | -11 -10 -10 -9 -9 --------- Run | Yrd Mat Min Mat Sto Machines Accessed 14 | . 1 1 4 8 Terminals 9 | . . . 4 5 Fabricators . | . . . . . Repair Stations 2 | . . . . 2 Recycling Units 1 | . 1 . . . Scanalyzers . | . . . . . Garrison Access 1 | . . . . 1 Total Hacks 46 | . 3 1 15 27 Successful 19 | . 1 1 7 10 Failed 27 | . 2 . 8 17 Catastrophic 3 | . . . . 3 Database Lockouts . | . . . . . Manual 27 | . . . 11 16 Terminals 33 | . . . 15 18 Fabricators . | . . . . . Repair Stations 5 | . . . . 5 Recycling Units 3 | . 3 . . . Scanalyzers . | . . . . . Garrison Access 4 | . . . . 4 Terminal Hacks 10 | . . 1 5 4 Part Schematic 1 | . . . . 1 Prototype ID Bank 2 | . . . 2 . Open Door 1 | . . 1 . . Branch Access Points 2 | . . . 1 1 Emergency Access Points 1 | . . . . 1 Locate Traps 1 | . . . 1 . Disarm Traps 1 | . . . 1 . Recall Investigation 1 | . . . . 1 Fabricator Hacks . | . . . . . Repair Station Hacks 3 | . . . . 3 Scan Component 2 | . . . . 2 Repair 1 | . . . . 1 Recycling Unit Hacks 1 | . 1 . . . Retrieve Components 1 | . 1 . . . Scanalyzer . | . . . . . Garrison Access Hacks 1 | . . . . 1 Seal Access 1 | . . . . 1 Unauthorized Hacks 4 | . . . 2 2 Terminals 4 | . . . 2 2 Botnet 3 | . . . 1 2 Operators 1 | . . . 1 . Fabricators . | . . . . . Repair Stations . | . . . . . Recycling Units . | . . . . . Scanalyzers . | . . . . . Garrison Access . | . . . . . Data Cores Recovered . | . . . . . Used . | . . . . . Hacking Detections 11 | . . . 4 7 Full Trace Events 6 | . . . 3 3 Feedback Events . | . . . . . Feedback Blocked . | . . . . . Robot Schematics Acquired . | . . . . . Robots Built . | . . . . . Authchips . | . . . . . Time . | . . . . . Total Robot Build Rating . | . . . . . Part Schematics Acquired 1 | . . . . 1 Parts Built . | . . . . . Authchips . | . . . . . Time . | . . . . . Total Part Build Rating . | . . . . . Parts Repaired 1 | . . . . 1 Time 38 | . . . . 38 Parts Recycled . | . . . . . Recycled Matter . | . . . . . Retrieved Matter . | . . . . . Retrieved Components 2 | . 2 . . . Parts Scanalyzed . | . . . . . Part Schematics Acquired . | . . . . . Parts Damaged . | . . . . . Bothacking | -11 -10 -10 -9 -9 ------------ Run | Yrd Mat Min Mat Sto Used RIF Installer . | . . . . . Robots Hacked . | . . . . . Non-combat . | . . . . . Combat . | . . . . . Robot Hacks Applied . | . . . . . Relay Couplers Released . | . . . . . Fabnet Peak Effective % . | . . . . . Robots Rewired . | . . . . . Allies Hacked . | . . . . . Hacks Repelled . | . . . . . Allies | -11 -10 -10 -9 -9 -------- Run | Yrd Mat Min Mat Sto Total Allies . | . . . . . Largest Group . | . . . . . Highest-Rated Group . | . . . . . Highest-Rated Ally . | . . . . . Total Orders . | . . . . . Ally Attacks . | . . . . . Total Damage . | . . . . . Kills . | . . . . . Allies Corrupted . | . . . . . Allies Melted . | . . . . . Intel | -11 -10 -10 -9 -9 ------- Run | Yrd Mat Min Mat Sto Robot Analysis Total . | . . . . . Derelict Logs Recovered 1 | . . 1 . . Drone Launches . | . . . . . Drone Recoveries . | . . . . . Exploration | -11 -10 -10 -9 -9 ------------- Run | Yrd Mat Min Mat Sto Turns Passed 1786 | . 201 373 645 567 Spaces Moved 914 | 1 104 246 321 242 Core 5 | . . . . 5 Treads 266 | . . 11 120 135 Legs 165 | 1 104 60 . . Wheels 478 | . . 175 201 102 Hover . | . . . . . Flight . | . . . . . Fastest Speed 95 | 120 120 115 115 95 Average Speed 134 | 120 120 117 150 137 Slowest Speed 250 | 120 120 145 225 250 Overloaded Moves . | . . . . . Propulsion Burnouts . | . . . . . Robots Hopped . | . . . . . Cave-ins Triggered . | . . . . . Exploration Rate (%) 34 | 1 29 57 31 54 Regions Visited 4 Branch Regions 2 Pre-discovered Areas . | . . . . . Known Exits Taken 1 | . . . 1 . Unknown Exits Taken 3 | 1 1 1 . . Scrap Searched 1 | . . 1 . . Spaces Dug . | . . . . . Terrain Destroyed 89 | . . 8 14 67 Melee . | . . . . . Projectile 4 | . . . 4 . AOE 85 | . . 8 10 67 Terrain Rammed . | . . . . . Walls Destroyed . | . . . . . Machines Disabled . | . . . . . Actions | -11 -10 -10 -9 -9 --------- Run | Yrd Mat Min Mat Sto Total 1255 | . 132 300 439 384 Wait 106 | . . 1 50 55 Move 910 | . 103 245 320 242 Hop . | . . . . . Pick Up 16 | . 1 7 8 . Fast Attach 29 | . 1 5 8 15 Attach 7 | . . 2 2 3 Detach 7 | . . 3 1 3 Swap 13 | . 1 . 6 6 Drop 32 | . . 12 15 5 Fire 90 | . 26 23 21 20 Melee 35 | . . . . 35 Ram 2 | . . 1 1 . Kick . | . . . . . Crush 4 | . . . 4 . Escape Stasis . | . . . . . Rewire . | . . . . . Trap 4 | . . 1 3 . Miscellaneous . | . . . . . Route ------- -11/Scrapyard -10/Materials -10/Mines -9/Materials (discovered 4 exits: [*Mat] / Min / *Sto x2) -9/Storage (discovered 1 exit: Rec) History --------- Turn | Location | Event 1 | -11/Scrapyard | Discovered new exit (range 0) 1 | -11/Scrapyard | Entered Materials 62 | -10/Materials | Discovered new exit (range 10) 202 | -10/Materials | Entered Mines 270 | -10/Mines | Met a Derelict who couldn't figure out how to use a Trap Extractor 327 | -10/Mines | Build established: Mutant 393 | -10/Mines | Found a hidden stash of uninstalled traps 421 | -10/Mines | YI-UF0 nonchalantly dropped a Grenade Launcher on the ground 468 | -10/Mines | Murdered YI-UF0 468 | -10/Mines | Destroyed YI-UF0 471 | -10/Mines | Found Corrupted Prototype Launcher 471 | -10/Mines | Identified YI-UF0's Doublenader 475 | -10/Mines | Found Corrupted Prototype Storage 475 | -10/Mines | Identified YI-UF0's Bottomless Matter Pit 476 | -10/Mines | System corruption reached 10% 529 | -10/Mines | Learned Materials emergency access door positions 551 | -10/Mines | Discovered new exit (range 9) 575 | -10/Mines | Entered Materials 575 | -9/Materials | Evolved 2 slots: Propulsion x1, Utility x1 715 | -9/Materials | Discovered new exit (range 8) 718 | -9/Materials | Identified exit to Mines 718 | -9/Materials | Identified exit to Storage 1220 | -9/Materials | Entered Storage 1360 | -9/Storage | Lost 4 parts (1p2n1w) 1425 | -9/Storage | Garrison activated, responded to threat 1462 | -9/Storage | Core integrity fell below 50% 1498 | -9/Storage | Core integrity fell below 20% 1507 | -9/Storage | System corruption reached 10% 1518 | -9/Storage | Lost 7 parts (1p3n1u2w) 1593 | -9/Storage | Repaired Hrd. Medium Armor Plating 1723 | -9/Storage | Identified exit to Recycling 1787 | -9/Storage | Destroyed by Y-45 Defender with Beam Rifle Last Messages --------------- 01723_ System corrupted: FCS attempts to trigger Rocket Launcher. 01723_ System corrupted: Rocket Launcher misfires. 01723_ R-06 Scavenger destroyed. 01723_ ALERT: Construction progress impeded, dispatching reinforcements to local area. 01723_ Connecting with Terminal... >>Access(Branch) Found 1 branch access point: (61,65) Recycling Map updated. 01734_ Rocket Launcher destroyed. 01735_ Y-45 Defender destroyed. 01740_ Dropped Lgt. Treads. 01743_ Dropped Wheel. 01744_ Acquired Lgt. Treads. 01748_ The unstable cave ceiling collapses. 01749_ System corrupted: Matter fused (-10). 01750_ Acquired 47 matter. 01753_ Acquired Hvy. Assault Rifle. 01777_ C3WNUSZZUZVDIQCX3D5N=<4Q&HZ,B Map ----- +----------------------------------------------------+ | ][ #??#"""#?# #########+###???????????? | | !!!! #??#####?## # #?????????????? | | ##########????????# # #?????????????? | | #????????# # #?????????????? | | #????????# + #?????????????? | | #????????# # #?????????????? | | +#########????????# # #?????????????? | | ??????????????????# + #?????????????? | | ??????????????????# # #?????????????? | | ??????????????????# ##### #####?????????????? | | ??????????????????# ## #???????????????? | | ??????????????????# ### = #???????????????? | | ??????????????????? ?# = #???????????????? | | ???????????????????????## #???????????????? | | ???????????????????????# #???????????????? | | ???????????????????????## #???????????????? | | ???????????????????????### ###???????????????? | | ?????????????????????????# #???#####?????????? | | ?????????????????## ?????# #??# ##????????? | | ?????????????????# ### ### #????????? | | ?????????????????# #????????? | | ?????????????????+ #????????? | | ?????????????????# #### Y ##????????? | | ?????????????????# ??# ##?????????? | | ?????????????????####???# Y # ##??????????? | | ????????????????????????#@ = # #???????????? | | ??????????????????????### ##? #???????????? | | ??????????????????????#"" """#???#???????????? | | ??????????????????????#"T """#???????????????? | | ??????????????????????#"" """#???????????????? | | ??????????????????????### #???????????????? | | ????????????????????????# """#???????????????? | | ????????????????????????# """#??>????????????? | | ????????????????????????# """#???????????????? | | ????????????????????????# ????????????????? | | ????????????????????????#####?????????????????? | | ??????????????????????????????????????????????? | | ??????????????????????????????????????????????? | | ??????????????????????????????????????????????? | | ??????????????????????????????????????????????? | | ??????????????????????????????????????????????? | | ??????????????????????????????????????????????? | | | | | | | | | | | | | | | | | +----------------------------------------------------+ Best States ------------- Heat Dissipation 28 Coolant Potential 50 Energy Generation 12 Energy Capacity 265 Matter Stores 300 Matter Capacity 300 Sight Range 16 Terrain Scan Density 10 ECM Strength 1 Armor Coverage 375 Resistance: TH 10 Evasion (%) 55 Targeting Accuracy 8 Recoil Reduction 3 Authchip Count 1 Item Schematics ----------------- Hpw. Tractor Beam | -9/Storage | Hacked Robot Schematics ------------------ None Fabricated ------------ Nothing Alien Tech Used ----------------- None Achievements -------------- None Challenges ------------ None Game ------ Seed SegregatorPlasmaStorage Manual? 0 Play Time 00:16:47 Cumulative 761.0 hours Start 2024.06.12 @ 16:09:36 End 2024.06.12 @ 16:25:29 Sessions 1 Manual Loads 0 Difficulty Rogue Special Mode None Game No. 851 Rogue 575 Adventurer 123 Explorer 153 Win Type - Total 28 Types 22/0/4/1/0/0/0/1/0 Lore% 84 Gallery% 92 Achievement% 76 Wizard Run 0 Options --------- Layout 0 ASCII 0 Keyboard 1 Movement Numpad Keybinds 0 Fullscreen 2 Font 18/Terminus Map View 76x50 Zoom Use 0% Tactical HUD 1 Map Filters NONE Filters SHIFT_HUE(360) Steam 1 RUN: fdfc70df-ce9a-4b78-af52-f7b5d03831d9